Workbook

Sheet 明细
B1: 湖北省道路客运站场投资统计报表（6月月报）
A3: 填报单位：湖北省道路运输事业发展中心
A4: 序号 | B4: 项目名称及战级 | C4: 投资建设单位名称 | D4: 建设性质 | E4: 开工时间 | F4: 建成时间 | G4: 计划总投资（万元） | H4: 自开始建设累计完成投资（万元） | I4: 本年计划投资（万元） | J4: 自年初累计完成投资（万元） | K4: 其中：本月完成投资 | L4: 项目建设阶段、进度情况 | S4: 前期工作批复文件
L6: 建设阶段 | M6: 形象进度
S7: 工可 | T7: 初设
A9: 合 计 | G9: =SUM(G10,G17,G23,G32,G42,G52,G60,G67,G81,G95,G107,G113) -> 783078.17 | H9: =SUM(H10,H17,H23,H32,H42,H52,H60,H67,H81,H95,H107,H113) -> 617415.8 | I9: =SUM(I10,I17,I23,I32,I42,I52,I60,I67,I81,I95,I107,I113) -> 66851.20 | J9: =SUM(J10,J17,J23,J32,J42,J52,J60,J67,J81,J95,J107,J113) -> 38050.4 | K9: =SUM(K10,K17,K23,K32,K42,K52,K60,K67,K81,K95,K107,K113) -> 3003.1
A10: 武汉市 | G10: =SUM(G11,G14,G15,G16) -> 324700.00 | H10: =SUM(H11,H14,H15,H16) -> 182785.4 | I10: =SUM(I11,I14,I15,I16) -> 14600.00 | J10: =SUM(J11,J14,J15,J16) -> 9100.0 | K10: =SUM(K11,K14,K15,K16) -> 900.0
A11: 一、使用交通部车购税资金建设项目 | G11: =SUM(G12:G13) -> 324700 | H11: 182785.4 | I11: 14600 | J11: 9100.0 | K11: 900.0
A12: 1 | B12: 汉口客运中心 | C12: 武汉楚驰实业开发有限公司 | D12: 改扩建 | E12: 2018 | F12: 2027 | G12: 315700 | H12: 177185.4 | I12: 8000 | J12: 3500.0 | K12: 500.0 | L12: 在建 | M12: 形象进度完成情况(1)地下室主体结构:负三层、负二层全部完成:负一层结构完成60%，面积约 18000平方米，地下室主体结构整体完成率达 83%。(2)裙楼主体结构:一层、二层均完成 25%，每层完成面积约 5000平方米。 (3)塔楼主体结构:1#塔楼一层核心简结构完成;2# 塔楼三层主体结构完成。 (4)南侧栈桥:拆除完成。 (5)北侧栈桥:拆除百分之五十。
A13: 2 | B13: 武汉南（山坡）客运枢纽站 | C13: 江夏经济发展投资集团有限公司 | D13: 续建 | E13: 2023 | F13: 2026 | G13: 9000 | H13: 5600.0 | I13: 6600 | J13: 5600.0 | K13: 400.0 | L13: 收尾 | M13: 项目规划总用地面积约28238.69m2(42.36亩)，净用地面积约24519.63m，总建筑面积约为6894.37m。计容建筑面积约6521.35m，其中站房约2681.47m，修理中心约753.92m'，配套楼约1600.64m，公厕约77.44m'，门房约25.84m'，架空连廊约180.63m，站台及停车罩棚约1051.69m，变配电室149.72m，消防水泵房及消防水池约203.35m。除上述单体外，还包含广场、停车场、配套道路、景观绿化智慧交通、光伏发电等配套工程。
A14: 二、使用省燃油税返还资金建设项目
A15: 三、农村综合运输服务站
A16: 四、候车亭
A17: 黄石市 | G17: =G18+G19+G20+G22 -> 13646.00 | H17: =H18+H19+H20+H22 -> 13646.0 | I17: =I18+I19+I20+I22 -> 12811.00 | J17: =J18+J19+J20+J22 -> 430.0 | K17: =K18+K19+K20+K22 -> 0.0
A18: 一、使用交通部车购税资金建设项目
A19: 二、使用省燃油税返还资金建设项目
A20: 三、农村综合运输服务站 | G20: =SUM(G21) -> 13646 | H20: =SUM(H21) -> 13646.0 | I20: =SUM(I21) -> 12811 | J20: =SUM(J21) -> 430.0 | K20: =SUM(K21) -> 0.0
A21: 1 | B21: 阳新综合客运枢纽站 | C21: 阳新县交建公司 | D21: 新建 | E21: 2021 | F21: 2026 | G21: 13646 | H21: 13646.0 | I21: 12811 | J21: 430.0 | K21: 0.0 | L21: 完工
A22: 四、候车亭
A23: 十堰市 | G23: =SUM(G24,G25,G30,G31) -> 20364.00 | H23: =SUM(H24,H25,H30,H31) -> 18414.0 | I23: =SUM(I24,I25,I30,I31) -> 2518.00 | J23: =SUM(J24,J25,J30,J31) -> 1598.0 | K23: =SUM(K24,K25,K30,K31) -> 0.0
A24: 一、使用交通部车购税资金建设项目
A25: 二、使用省燃油税返还资金建设项目 | G25: =SUM(G26:G29) -> 20364 | H25: =SUM(H26:H29) -> 18414.0 | I25: =SUM(I26:I29) -> 2518 | J25: =SUM(J26:J29) -> 1598.0 | K25: =SUM(K26:K29) -> 0.0
A26: 1 | B26: 郧西县客运换乘中心 | C26: 郧西县城乡发展投资开发有限公司 | D26: 新建 | E26: 2024 | F26: 2026 | G26: 9764 | H26: 9764.0 | I26: 918 | J26: 918.0 | K26: 0.0 | L26: 完工
A27: 2 | B27: 丹江口市右岸汽车客运站 | C27: 丹江口市交投公司 | D27: 新建 | E27: 2023 | F27: 2024 | G27: 9000 | H27: 7970.0 | I27: 0 | J27: 0.0 | K27: 0.0 | L27: 暂停施工 | M27: 主体完工，待装修
A28: 3 | B28: 竹山县客运中心站 | C28: 二级 | D28: 改扩建 | E28: 2026 | F28: 2027 | G28: 800 | H28: 340 | I28: 800 | J28: 340 | K28: 0 | L28: 在建 | M28: 完成停车场内公交车专业充电桩及站前广场社会车辆充电桩建设
A29: 4 | B29: 竹山县高速客运站 | C29: 二级 | D29: 改扩建 | E29: 2026 | F29: 2027 | G29: 800 | H29: 340 | I29: 800 | J29: 340 | K29: 0 | L29: 在建 | M29: 完成充电桩安全防护及标识标线等辅助设施
A30: 三、农村综合运输服务站
A31: 四、候车亭
A32: 宜昌市 | G32: =SUM(G33,G34,G37,G41) -> 57952.00 | H32: =SUM(H33,H34,H37,H41) -> 56848.9 | I32: =SUM(I33,I34,I37,I41) -> 9013.00 | J32: =SUM(J33,J34,J37,J41) -> 10458.0 | K32: =SUM(K33,K34,K37,K41) -> 436.0
A33: 一、使用交通部车购税资金建设项目
A34: 二、使用省燃油税返还资金建设项目 | G34: =SUM(G35:G36) -> 50000 | H34: 49999.9 | I34: 3996 | J34: 3609.0 | K34: 0.0
A35: 1 | B35: 当阳市高铁综合客运站 | C35: 当阳建投项目建设管理有限公司 | D35: 新建 | E35: 2024.9 | F35: 2026 | G35: 20000 | H35: 19999.9 | I35: 2000 | J35: 2053.0 | K35: 0.0 | L35: 完工 | M35: 建成投运 | S35: 2402-420582-04-01-655698
A36: 2 | B36: 宜昌北客运站 | C36: 宜昌高铁新城建设有限责任公司 | D36: 新建 | E36: 2024.9 | F36: 2026 | G36: 30000 | H36: 30000.0 | I36: 1996 | J36: 1556.0 | K36: 0.0 | L36: 完工 | M36: 建成投运 | S36: 2409-420506-04-01-137757
A37: 三、农村综合运输服务站 | G37: =SUM(G38:G40) -> 7952 | H37: 6849.0 | I37: 5017 | J37: 6849.0 | K37: 436.0
A38: 3 | B38: 南阳客运站（综合服务中心） | C38: 兴山县城投置业有限公司 | D38: 新建 | E38: 2026.1 | F38: 2027.12 | G38: 1418 | H38: 1418.0 | I38: 1418 | J38: 1418.0 | K38: 0.0 | L38: 收尾 | M38: 主体完工 | S38: 兴发改审批〔2025〕15号 | T38: 兴发改审批〔2025〕35号
A39: 4 | B39: 鲁家湾交通运输综合服务站 | C39: 秭归县住保置业发展有限公司 | D39: 新建 | E39: 2026.1 | F39: 2027.12 | G39: 1599 | H39: 1256.0 | I39: 1599 | J39: 1256.0 | K39: 55.0 | L39: 正式施工 | M39: 主体施工 | S39: 秭发改审批〔2024〕263号 | T39: 秭发改审批〔2024〕263号
A40: 5 | B40: 榛子客运站 | C40: 兴山县旅游发展投资有限公司 | D40: 新建 | E40: 2026.1 | F40: 2026.12 | G40: 4935 | H40: 4175.0 | I40: 2000 | J40: 4175.0 | K40: 381.0 | L40: 正式施工 | M40: 主体施工 | S40: 兴发改审批〔2025〕109号 | T40: 兴发改审批〔2025〕144号
A41: 四、候车亭
A42: 襄阳市 | G42: =SUM(G43,G44,G49,G51) -> 29371.62 | H42: =SUM(H43,H44,H49,H51) -> 27874.3 | I42: =SUM(I43,I44,I49,I51) -> 1514.0 | J42: =SUM(J43,J44,J49,J51) -> 2420.0 | K42: =SUM(K43,K44,K49,K51) -> 486.2
A43: 一、使用交通部车购税资金建设项目
A44: 二、使用省燃油税返还资金建设项目 | G44: =SUM(G45:G48) -> 29168.66 | H44: =SUM(H45:H48) -> 27671.3 | I44: =SUM(I45:I48) -> 1514 | J44: =SUM(J45:J48) -> 2217.0 | K44: =SUM(K45:K48) -> 486.2
A45: 1 | B45: 南漳县公铁换乘中心(郑万高铁南漳综合客运枢纽) | C45: 南漳县交通运输局 | D45: 新建 | E45: 2022 | F45: 2026 | G45: 18074 | H45: 18074.0 | I45: 100 | J45: 100.0 | K45: 0.0 | L45: 完工 | M45: 已完工 | S45: 南发改审批[2022] 95号 | T45: 南发改审批[2022] 96号
A46: 2 | B46: 宜城市公铁换乘中心（宜城高铁新城综合客运枢纽项目） | C46: 宜城市交通运输局 | D46: 新建 | E46: 2025 | F46: 2026 | G46: 9264.01 | H46: 7768.3 | I46: 233 | J46: 938.0 | K46: 226.0 | L46: 收尾 | M46: 公交换乘中心、客运换乘中心室内装修完成95%，弱电信息化建设完成90%，治安监控系统完成45%。 | S46: 宜发改审批[2023]247号、宜发改审批[2025]42号 | T46: 宜发改审批[2024]154号、宜发改审批[2025]44号
A47: 3 | B47: 谷城县茨河客运站（公交首末站） | C47: 谷城县交通运输局 | D47: 新建 | E47: 2025 | F47: 2027 | G47: 930.65 | H47: 929.0 | I47: 281 | J47: 279.0 | K47: 67.4 | L47: 完工 | M47: 已完工 | T47: 谷发改审批[2025] 52号
A48: 4 | B48: 谷城县汽车客运站共配中心建设 | C48: 谷城县交通运输局 | D48: 改扩建 | E48: 2026 | F48: 2026 | G48: 900 | H48: 900.0 | I48: 900 | J48: 900.0 | K48: 192.8 | L48: 完工 | M48: 已完工
A49: 三、农村综合运输服务站 | G49: =SUM(G50:G50) -> 202.96 | H49: 203.0 | I49: 0.00 | J49: 203.0 | K49: 0.0
A50: 1 | B50: 襄州区程河镇埠口综合运输服务站 | C50: 襄州区交通运输局 | D50: 新建 | E50: 2025 | F50: 2025 | G50: 202.96 | H50: 203.0 | J50: 203.0 | K50: 0.0 | L50: 完工 | M50: 已竣工验收，投入使用 | T50: 襄区发改审批[2024] 79号
A51: 四、候车亭
A52: 荆门市 | G52: =SUM(G53,G54,G58,G59) -> 160443.48 | H52: =SUM(H53,H54,H58,H59) -> 157658.3 | I52: =SUM(I53,I54,I58,I59) -> 6400 | J52: =SUM(J53,J54,J58,J59) -> 3615.3 | K52: =SUM(K53,K54,K58,K59) -> 669.8
A53: 一、使用交通部车购税资金建设项目
A54: 二、使用省燃油税返还资金建设项目 | G54: =SUM(G55:G57) -> 160443.48 | H54: 157658.3 | I54: 6400 | J54: 3615.3 | K54: 669.8
A55: 1 | B55: 钟祥市综合交通客运枢纽一期项目 | C55: 钟祥厚德建设工程有限公司 | D55: 续建 | E55: 202302 | F55: 2026 | G55: 109953 | H55: 109953.0 | I55: 1200 | J55: 1200.0 | K55: 0.0 | L55: 完工 | M55: 已投入运营 | S55: 钟审发字[2022]271号 | T55: 钟审发字[2022]384号
A56: 2 | B56: 京山南公铁综合客运枢纽 | C56: 京山市京诚投资开发有限公司 | D56: 续建 | E56: 202312 | F56: 2026 | G56: 46490.48 | H56: 45515.7 | I56: 1200 | J56: 225.7 | K56: 0.0 | L56: 完工 | M56: 已投入运营 | S56: 2023年10月17日京审批字〔2023〕294号 | T56: 已完成未批复
A57: 3 | B57: 京山南片换乘客运中心项目 | C57: 京山市福刚公共汽车有限责任公司 | D57: 新建 | E57: 202512 | F57: 2026 | G57: 4000 | H57: 2189.6 | I57: 4000 | J57: 2189.6 | K57: 669.8 | L57: 在建 | M57: A座二至四层浇筑完成.B座一至三层浇筑完成 | S57: 京审批字〔2020〕235号
A58: 三、农村综合运输服务站
A59: 四、候车亭
A60: 孝感市 | G60: =SUM(G61,G62,G65,G66) -> 55878.00 | H60: =SUM(H61,H62,H65,H66) -> 51264.0 | I60: =SUM(I61,I62,I65,I66) -> 9673.00 | J60: =SUM(J61,J62,J65,J66) -> 2524.0 | K60: =SUM(K61,K62,K65,K66) -> 72.0
A61: 一、使用交通部车购税资金建设项目
A62: 二、使用省燃油税返还资金建设项目 | G62: =SUM(G63:G64) -> 55878 | H62: =SUM(H63:H64) -> 51264 | I62: =SUM(I63:I64) -> 9673 | J62: =SUM(J63:J64) -> 2524.0 | K62: =SUM(K63:K64) -> 72.0
A63: 1 | B63: 沿江高铁汉川北站站前广场(综合客运枢纽) | C63: 汉川市汉江国有资本投资运营有限公司 | D63: 新建 | E63: 2024 | F63: 2026 | G63: 49500 | H63: 47575.0 | I63: 4500 | J63: 1161.0 | K63: 52.0 | L63: 在建 | M63: 换乘中心内部装修及外墙施工，西广场电力施工完成、公交站台施工完成，商业综合体建设，整体形象进度完成约98% | S63: 川发改行审〔2023〕69号 | T63: 川发改行审〔2023〕85号
A64: 2 | B64: 孝感东城客运换乘中心(更名为汉十高铁孝感东综合交通枢纽) | C64: 孝感客运集团有限公司 | D64: 新建 | E64: 2025 | F64: 2026 | G64: 6378 | H64: 3689.0 | I64: 5173 | J64: 1363.0 | K64: 20.0 | L64: 在建 | M64: 主体钢筋混凝土工程累计完成98%，金属钢结构工程本月完成50%，累计完成80% | S64: 211-420900-04-01-933445 | T64: 孝发改审批[2020]104号
A65: 三、农村综合运输服务站
A66: 四、候车亭
A67: 黄冈市 | G67: =SUM(G68,G70,G72) -> 57453.70 | H67: 50005.50 | I67: 3777.70 | J67: 3777.70 | K67: 0.00
A68: 一、使用交通部车购税资金建设项目 | G68: =SUM(G69:G69) -> 25900 | H68: =SUM(H69:H69) -> 25900.0 | I68: =SUM(I69:I69) -> 100 | J68: =SUM(J69:J69) -> 100.0 | K68: =SUM(K69:K69) -> 0.0
A69: 1 | B69: 武杭高铁黄冈西综合客运枢纽 | C69: 黄冈市 | D69: 新建 | E69: 2021 | F69: 2026 | G69: 25900 | H69: 25900.0 | I69: 100 | J69: 100.0 | K69: 0.0 | L69: 完工 | M69: 已完工 | S69: 站房是按黄黄铁路一类设计变更。站区：黄发改审批[2021]211号。 | T69: 站房：铁鉴函[2021]220号。站区还未批复
A70: 二、使用省燃油税返还资金建设项目 | G70: =SUM(G71) -> 27993 | H70: 20544.8 | I70: 117 | J70: 117 | K70: 0
A71: 2 | B71: 黄黄高铁浠水综合客运枢纽 | C71: 浠水县交通运输局 | D71: 新建 | E71: 2020 | F71: 2026 | G71: 27993 | H71: 20544.8 | I71: 117 | J71: 117.0 | K71: 0.0 | L71: 完工 | M71: 已完工 | S71: 浠发改交通[2020]2号 | T71: 浠发改审批[2021]27号
A72: 三、农村综合运输服务站 | G72: =SUM(G73:G79) -> 3560.7 | H72: =SUM(H73:H79) -> 3560.7 | I72: =SUM(I73:I79) -> 3560.7 | J72: =SUM(J73:J79) -> 3560.7 | K72: =SUM(K73:K79) -> 0
A73: 3 | B73: 盐田河镇交通物流电商综合服务站 | C73: 盐田河镇人民政府 | D73: 新建 | E73: 2023 | F73: 2026 | G73: 820.5 | H73: 820.5 | I73: 820.5 | J73: 820.5 | K73: 0 | L73: 完工 | M73: 已完工
A74: 4 | B74: 龟山镇交通物流电商综合服务站 | C74: 龟山镇人民政府 | D74: 新建 | E74: 2023 | F74: 2026 | G74: 830.5 | H74: 830.5 | I74: 830.5 | J74: 830.5 | K74: 0 | L74: 完工 | M74: 已完工
A75: 5 | B75: 顺河镇交通物流电商综合服务站 | C75: 麻城市交通物流事业发展中心 | D75: 改建 | E75: 2024 | F75: 2026 | G75: 155.4 | H75: 155.4 | I75: 155.4 | J75: 155.4 | K75: 0 | L75: 完工 | M75: 已完工
A76: 6 | B76: 铁门乡交通物流电商综合服务站 | C76: 麻城宇通公交有限公司 | D76: 新建 | E76: 2025 | F76: 2026 | G76: 282.8 | H76: 282.8 | I76: 282.8 | J76: 282.8 | K76: 0 | L76: 完工 | M76: 已完工 | T76: 登记备案项目代码:2502-421181-04-01-411548
A77: 7 | B77: 宋埠镇交通物流电商综合服务站 | C77: 麻城宇通公交有限公司 | D77: 新建 | E77: 2025 | F77: 2026 | G77: 533.8 | H77: 533.8 | I77: 533.8 | J77: 533.8 | K77: 0 | L77: 完工 | M77: 已完工 | T77: 登记备案项目代码:2502-421181-04-01-411548
A78: 8 | B78: 歧亭镇交通物流电商综合服务站 | C78: 麻城宇通公交有限公司 | D78: 新建 | E78: 2025 | F78: 2026 | G78: 644.4 | H78: 644.4 | I78: 644.4 | J78: 644.4 | K78: 0 | L78: 完工 | M78: 已完工 | T78: 登记备案项目代码:2502-421181-04-01-411548
A79: 9 | B79: 张家畈镇交通物流电商综合服务站 | C79: 麻城市交通物流事业发展中心 | D79: 新建 | E79: 2025 | F79: 2026 | G79: 293.3 | H79: 293.3 | I79: 293.3 | J79: 293.3 | K79: 0 | L79: 完工 | M79: 已完工 | S79: 麻发改审批〔2024〕54号、麻发改审批〔2025〕23号 | T79: 麻发改审批〔2025〕40号
A80: 四、候车亭
A81: 咸宁市 | G81: =SUM(G82,G83,G87,G94) -> 13727.00 | H81: =SUM(H82,H83,H87,H94) -> 11320.5 | I81: =SUM(I82,I83,I87,I94) -> 2978.00 | J81: =SUM(J82,J83,J87,J94) -> 1310.0 | K81: =SUM(K82,K83,K87,K94) -> 260.0
A82: 一、使用交通部车购税资金建设项目
A83: 二、使用省燃油税返还资金建设项目 | G83: =SUM(G84:G86) -> 9471 | H83: 8633.9 | I83: 928 | J83: 310.0 | K83: 170.0
A84: 1 | B84: 通山城西综合客运站（二级站） | C84: 通山县 | D84: 新建 | E84: 2023 | F84: 2025 | G84: 6081 | H84: 6038.0 | I84: 143 | J84: 100.0 | K84: 20.0 | L84: 在建 | M84: 土建工程基础 | S84: 通发改审批【2023】23号
A85: 2 | B85: 通山县燕厦客运站（三级站） | C85: 通山县 | D85: 续建 | E85: 2022 | F85: 2025 | G85: 2190 | H85: 1866.9 | I85: 200 | J85: 0.0 | K85: 0.0 | L85: 暂停施工 | S85: 通发改审批 〔2021〕49号 | T85: 通发改审批〔2021〕91号
A86: 3 | B86: 通城县中心客运站（一级站） | C86: 通城县 | D86: 改扩建 | E86: 2025 | F86: 2026 | G86: 1200 | H86: 729.0 | I86: 585 | J86: 210.0 | K86: 150.0 | L86: 在建 | M86: 主体施工 | S86: 隽发改审批【2022】425号 | T86: 隽发改审批【2023】357号
A87: 三、农村综合运输服务站 | G87: =SUM(G88:G93) -> 4256 | H87: =SUM(H88:H93) -> 2686.6 | I87: =SUM(I88:I93) -> 2050 | J87: =SUM(J88:J93) -> 1000.0 | K87: =SUM(K88:K93) -> 90.0
A88: 4 | B88: 桂花镇综合运输服务站 | C88: 咸安区 | D88: 新建 | E88: 2025 | F88: 2026 | G88: 524 | H88: 509.8 | I88: 250 | J88: 150.0 | K88: 0.0 | L88: 在建 | M88: 土建工程基础 | S88: 咸安发改审批字【2024】29号 | T88: 咸安发改审批字【2024】125号
A89: 5 | B89: 马桥镇综合运输服务站 | C89: 咸安区 | D89: 新建 | E89: 2025 | F89: 2026 | G89: 947 | H89: 552.3 | I89: 600 | J89: 430.0 | K89: 70.0 | L89: 在建 | M89: 土建工程基础 | S89: 咸安发改审批字【2024】29号 | T89: 咸安发改审批字【2024】125号
A90: 6 | B90: 高桥镇综合运输服务站 | C90: 咸安区 | D90: 新建 | E90: 2025 | F90: 2026 | G90: 435 | H90: 414.1 | I90: 250 | J90: 180.0 | K90: 20.0 | L90: 在建 | M90: 土建工程基础 | S90: 咸安发改审批字【2024】29号 | T90: 咸安发改审批字【2024】125号
A91: 7 | B91: 大幕乡综合运输服务站 | C91: 咸安区 | D91: 新建 | E91: 2025 | F91: 2026 | G91: 977 | H91: 165.4 | I91: 600 | J91: 40.0 | K91: 0.0 | L91: 暂停施工 | M91: 重新选址 | S91: 咸安发改审批字【2024】29号 | T91: 咸安发改审批字【2024】125号
A92: 8 | B92: 汀泗桥镇综合运输服务站 | C92: 咸安区 | D92: 改扩建 | E92: 2025 | F92: 2026 | G92: 800 | H92: 520.3 | I92: 200 | J92: 0.0 | K92: 0.0 | L92: 在建 | S92: 咸安发改审批字【2024】29号 | T92: 咸安发改审批字【2024】125号
A93: 9 | B93: 向阳湖镇综合运输服务站 | C93: 咸安区 | D93: 新建 | E93: 2025 | F93: 2026 | G93: 573 | H93: 524.7 | I93: 150 | J93: 200.0 | K93: 0.0 | L93: 在建 | M93: 土建工程基础 | S93: 咸安发改审批字【2024】29号 | T93: 咸安发改审批字【2024】125号
A94: 四、候车亭
A95: 恩施州 | G95: =SUM(G97,G100) -> 42316.46 | H95: 40657.40 | I95: 3196.50 | J95: 2447.40 | K95: 179.10
A96: 一、使用交通部车购税资金建设项目
A97: 二、使用省燃油税返还资金建设项目 | G97: =SUM(G98:G99) -> 39220 | H97: =SUM(H98:H99) -> 38310.0 | I97: =SUM(I98:I99) -> 100 | J97: =SUM(J98:J99) -> 100.0 | K97: =SUM(K98:K99) -> 0.0
A98: 1 | B98: 咸丰县坪坝营旅游客运站 | C98: 咸丰坪坝营旅游客运公司 | D98: 续建 | E98: 2018 | F98: 2024 | G98: 8000 | H98: 7090.0 | J98: 0.0 | K98: 0.0 | L98: 在建 | M98: 客运站主体砌墙砖及地面砖
A99: 2 | B99: 郑万高铁巴东综合客运枢纽 | C99: 巴东神农投资有限公司 | D99: 新建 | E99: 2020 | F99: 2026 | G99: 31220 | H99: 31220.0 | I99: 100 | J99: 100.0 | K99: 0.0 | L99: 建成 | M99: 建成
A100: 三、农村综合运输服务站 | G100: =SUM(G101:G105) -> 3096.46 | H100: 2347.4 | I100: 3096.5 | J100: 2347.4 | K100: 179.1
A101: 1 | B101: 恩施市新塘乡综合运输服务站 | C101: 恩施市新塘乡人民政府 | D101: 新建 | E101: 2022 | F101: 2024 | G101: 1647.01 | H101: 1647.0 | I101: 1647 | J101: 1647.0 | K101: 0.0 | L101: 建成 | M101: 建成
A102: 2 | B102: 来凤县三胡乡综合运输服务站 | C102: 来凤天顺实业有限公司 | D102: 新建 | E102: 2023 | F102: 2024 | G102: 379.45 | H102: 379.5 | I102: 379.5 | J102: 379.5 | K102: 0.0 | L102: 建成 | M102: 建成
A103: 3 | B103: 利川市团堡镇交通综合运输服务站 | C103: 利川市玉龙运业有限责任公司 | D103: 新建 | E103: 2026 | F103: 2026 | G103: 350 | H103: 5 | I103: 350 | J103: 5 | K103: 0 | L103: 正式施工 | M103: 地基平整
A104: 4 | B104: 南坪乡交通综合运输服务站 | C104: 利川市南坪乡南坪村民委员会 | D104: 新建 | E104: 2026 | F104: 2026 | G104: 320 | H104: 275.9 | I104: 320 | J104: 275.9 | K104: 179.1 | L104: 正式施工 | M104: 已完成基础正负零、主体结构、内外墙粉刷涂料、外墙钢架玻璃雨棚、前后场地硬化及排水沟、门窗安装、室内水电安装、路基坝、围墙、室内地坪及化粪池等施工内容。
A105: 5 | B105: 咸丰县活龙坪乡综合运输服务站 | C105: 咸丰县淳毅运输有限公司 | D105: 新建 | E105: 2026 | F105: 2026 | G105: 400 | H105: 40 | I105: 400 | J105: 40 | K105: 0 | L105: 正式施工 | M105: 场地平整
A106: 四、候车亭
A107: 仙桃市 | G107: =SUM(G108,G110,G111,G112) -> 1200.00 | H107: =SUM(H108,H110,H111,H112) -> 920.0 | I107: =SUM(I108,I110,I111,I112) -> 370.00 | J107: =SUM(J108,J110,J111,J112) -> 370.0 | K107: =SUM(K108,K110,K111,K112) -> 0.0
A108: 一、使用交通部车购税资金建设项目 | G108: =SUM(G109:G109) -> 1200 | H108: =SUM(H109:H109) -> 920.0 | I108: =SUM(I109:I109) -> 370 | J108: =SUM(J109:J109) -> 370.0 | K108: =SUM(K109:K109) -> 0.0
A109: 1 | B109: 仙桃市毛嘴客运站 | C109: 交通局 | D109: 新建 | E109: 2024.3 | F109: 2026 | G109: 1200 | H109: 920.0 | I109: 370 | J109: 370.0 | K109: 0.0 | L109: 完工 | M109: 完工 | S109: 鄂交发【2023】22号
A110: 二、使用省燃油税返还资金建设项目
A111: 三、农村综合运输服务站
A112: 四、候车亭
A113: 林区 | G113: =SUM(G114,G115,G117,G118) -> 6025.91 | H113: =SUM(H114,H115,H117,H118) -> 6021.5 | I113: =SUM(I114,I115,I117,I118) -> 0.00 | J113: =SUM(J114,J115,J117,J118) -> 0.0 | K113: =SUM(K114,K115,K117,K118) -> 0.0
A114: 一、使用交通部车购税资金建设项目
A115: 二、使用省燃油税返还资金建设项目 | G115: =SUM(G116:G116) -> 6025.91 | H115: =SUM(H116:H116) -> 6021.5 | I115: =SUM(I116:I116) -> 0 | J115: =SUM(J116:J116) -> 0.0 | K115: =SUM(K116:K116) -> 0.0
A116: 1 | B116: 神农架枢纽站 | C116: 林区交投公司 | D116: 续建 | E116: 2019 | F116: 2026 | G116: 6025.91 | H116: 6021.5 | I116: 0 | J116: 0.0 | K116: 0.0 | L116: 建成 | M116: 建成投产 | S116: 神发改审批【2018】150号 | T116: 神发改审批【2020】113号
A117: 三、农村综合运输服务站
A118: 四、候车亭

Sheet 汇总
A1: 湖北省道路客运站场建设投资完成情况汇总表
A2: 2026-06-01
A3: 填报单位:省运管局 | E3: 单位:万元
A4: 单位名称 | B4: 年度计划投资 | C4: 自年初累计完成投资 | D4: 本月完成投资 | E4: 自年初累计完成投资占年度计划比例(%)
A7: 合计 | B7: =SUM(B8:B24) -> 72,978.85 | C7: =SUM(C8:C24) -> 38050.40 | D7: =SUM(D8:D24) -> 3,003.10 | E7: =C7/B7*100 -> 52.1
A8: 武汉 | B8: 19600 | C8: =明细!J10 -> 9100 | D8: =明细!K10 -> 900 | E8: =C8/B8*100 -> 46.4
A9: 黄石 | C9: =明细!J17 -> 430 | D9: =明细!K17 -> 0
A10: 十堰 | B10: 2518 | C10: =明细!J23 -> 1598 | D10: =明细!K23 -> 0 | E10: 63.5
A11: 宜昌 | B11: 7496 | C11: =明细!J32 -> 10458 | D11: =明细!K32 -> 436 | E11: 139.5
A12: 襄阳 | B12: 2013.64 | C12: =明细!J42 -> 2420 | D12: =明细!K42 -> 486 | E12: 120.2
A13: 鄂州 | B13: 1200 | E13: 0.0
A14: 荆门 | B14: 9090 | C14: =明细!J52 -> 3615.30 | D14: =明细!K52 -> 670 | E14: 39.8
A15: 孝感 | B15: 9973 | C15: =明细!J60 -> 2524 | D15: =明细!K60 -> 72 | E15: 25.3
A16: 荆州 | B16: 2920.21 | E16: 0.0
A17: 黄冈 | B17: 14491 | C17: =明细!J67 -> 3778 | D17: =明细!K67 -> 0 | E17: 26.1
A18: 咸宁 | B18: 2835 | C18: =明细!J81 -> 1310.0 | D18: =明细!K81 -> 260 | E18: 46.2
A19: 随州 | B19: 208 | E19: 0.0
A20: 恩施 | C20: =明细!J95 -> 2447 | D20: =明细!K95 -> 179
A21: 仙桃 | B21: 634 | C21: =明细!J107 -> 370 | D21: =明细!K107 -> 0 | E21: 58.4
A22: 潜江
A23: 天门
A24: 林区 | C24: =明细!J113 -> 0 | D24: =明细!K113 -> 0
